bitfinex/quotes_SOLUSD_20230120
["timestamp","ask_amount","ask_price","bid_price","bid_amount"]
[1674203177583,0.96,20.996,20.981,45.75]
[1674203177799,10.96,20.996,20.981,45.75]
[1674203178007,17.96,20.995,20.981,45.75]
[1674203178219,0.96,20.994,20.981,45.75]
[1674203178653,0.96,20.993,20.981,45.75]
[1674203179602,0.96,20.993,20.981,35.75]
[1674203179810,17.96,20.993,20.981,35.75]
[1674203180120,10.96,20.992,20.98,111.1339]
[1674203180338,17.0,20.991,20.978,35.76]
[1674203180525,1.92,20.99,20.978,35.76]
[1674203181901,10.0,20.994,20.978,35.76]
[1674203182528,10.0,20.994,20.978,45.76]
[1674203182939,35.72,21.001,20.978,45.76]
[1674203183155,45.71,21.007,20.979,38.92]
[1674203183470,146.2861,21.005,20.98,35.75]
[1674203183685,10.0,21.002,20.982,10.0]
[1674203183895,35.72,21.001,20.983,35.75]
[1674203184114,35.72,21.001,20.984,20.0]
[1674203184331,17.96,21.0,20.985,35.74]
[1674203184540,10.0,20.999,20.985,35.74]
[1674203184724,17.96,20.998,20.985,35.74]
[1674203184939,10.0,21.002,20.985,35.74]
[1674203186103,17.0,21.001,20.985,35.74]
[1674203186643,10.96,21.0,20.985,35.74]
[1674203186848,10.0,20.998,20.985,35.74]
[1674203187061,18.92,20.997,20.985,35.74]
[1674203187674,10.0,20.996,20.985,35.74]
[1674203187879,18.92,20.995,20.985,35.74]
[1674203188524,18.92,20.995,20.979,118.9632]
[1674203188525,10.0,20.994,20.981,35.75]
[1674203188753,1.92,20.993,20.98,35.75]
[1674203188944,18.92,20.993,20.978,35.76]
[1674203189580,10.0,20.992,20.978,35.76]
[1674203189795,18.92,20.991,20.978,35.76]
[1674203190336,10.0,20.99,20.978,35.76]
[1674203190546,18.92,20.989,20.978,35.76]
[1674203190756,17.0,20.989,20.978,35.76]
[1674203190945,10.0,20.992,20.978,35.76]
[1674203191150,18.92,20.991,20.978,35.76]
[1674203192330,10.0,21.002,20.978,35.76]
[1674203192523,35.72,21.001,20.978,45.76]
[1674203192729,20.0,20.999,20.978,45.76]
[1674203192956,10.0,20.998,20.979,10.0]
[1674203193165,10.0,20.998,20.98,35.75]
[1674203193580,10.0,20.998,20.981,10.0]
[1674203193775,35.72,21.001,20.982,35.75]
[1674203193996,10.0,21.002,20.983,20.0]
[1674203194206,45.71,21.002,20.984,35.74]
[1674203194415,0.96,21.001,20.985,20.0]
[1674203194731,0.96,21.001,20.986,35.74]
[1674203194944,10.96,21.0,20.986,35.74]
[1674203195162,17.96,20.999,20.986,35.74]
[1674203195369,0.96,20.998,20.986,35.74]
[1674203195695,0.96,20.997,20.986,35.74]
[1674203195902,10.0,21.002,20.986,35.74]
[1674203196116,45.71,21.006,20.986,35.74]
[1674203196320,120.5761,21.005,20.987,10.0]
[1674203196522,45.71,21.003,20.988,35.74]
[1674203196941,10.0,21.003,20.988,148.6685]
[1674203197161,17.96,21.002,20.988,148.6685]
[1674203197881,30.0,21.001,20.986,35.74]
[1674203198092,54.64,21.0,20.98,35.75]
[1674203198322,20.0,20.999,20.983,35.75]
[1674203198537,28.92,20.998,20.983,35.75]
[1674203199469,64.64,20.998,20.983,35.75]
[1674203199679,28.92,20.998,20.983,35.75]
[1674203199909,18.92,20.998,20.983,35.75]
[1674203200548,10.0,20.997,20.983,35.75]
[1674203200753,10.0,20.995,20.98,35.75]
[1674203200952,10.0,20.995,20.979,35.75]
[1674203201165,18.92,20.994,20.978,35.76]
[1674203201390,10.0,20.993,20.978,35.76]
[1674203201600,18.92,20.992,20.978,35.76]
[1674203202515,10.0,20.991,20.978,35.76]
[1674203202746,18.92,20.99,20.967,35.77]
[1674203202960,10.0,20.989,20.969,10.0]
[1674203203185,18.92,20.988,20.97,55.77]
[1674203203354,10.0,20.987,20.971,10.0]
[1674203203569,18.92,20.986,20.972,55.77]
[1674203208109,18.92,20.986,20.973,10.0]
[1674203208321,18.92,20.986,20.974,55.76]
[1674203208518,17.0,20.985,20.974,55.76]
[1674203208843,1.92,20.984,20.974,55.76]
[1674203209029,0.96,20.983,20.975,10.0]
[1674203209249,0.96,20.982,20.976,35.76]
[1674203209448,1.92,20.986,20.976,35.76]
[1674203210095,17.0,20.988,20.976,35.76]
[1674203210438,10.0,20.989,20.976,35.76]
[1674203210831,10.0,20.991,20.976,35.76]
[1674203211045,10.0,20.991,20.977,10.0]
[1674203211256,10.0,20.991,20.978,35.76]
[1674203211585,17.96,20.99,20.978,35.76]
[1674203211900,18.92,20.99,20.978,35.76]
[1674203212505,0.96,20.99,20.978,35.76]
[1674203213029,0.96,20.99,20.976,35.76]
[1674203214104,0.96,20.989,20.976,35.76]
[1674203214292,0.96,20.988,20.977,10.0]
[1674203214505,0.96,20.987,20.978,35.76]
[1674203214716,0.96,20.986,20.976,35.76]
[1674203214949,0.96,20.985,20.976,35.76]
[1674203215143,0.96,20.984,20.976,35.76]
[1674203215562,0.96,20.985,20.976,35.76]
[1674203216098,0.96,20.985,20.977,10.0]
[1674203216308,0.96,20.985,20.978,35.76]
[1674203217898,0.96,20.984,20.976,35.76]
[1674203218205,0.96,20.985,20.976,35.76]
[1674203220197,0.96,20.984,20.976,35.76]
[1674203220396,0.96,20.983,20.976,35.76]
[1674203220724,0.96,20.982,20.975,35.76]
[1674203220913,0.96,20.981,20.975,35.76]
[1674203221125,0.96,20.982,20.975,35.76]
[1674203221334,10.0,20.989,20.975,35.76]
[1674203221540,17.0,20.988,20.975,35.76]
[1674203221773,10.0,20.987,20.975,35.76]
[1674203221974,17.0,20.986,20.975,35.76]
[1674203222396,10.0,20.994,20.975,35.76]
[1674203222811,10.0,20.994,20.976,10.0]
[1674203223039,10.0,20.994,20.977,35.76]
[1674203223234,10.0,20.994,20.978,10.0]
[1674203223456,10.0,20.994,20.98,10.0]
[1674203223651,10.0,20.994,20.981,35.75]
[1674203224502,17.0,20.993,20.981,35.75]
[1674203224718,11.92,20.992,20.981,35.75]
[1674203224920,17.0,20.991,20.98,10.0]
[1674203225126,1.92,20.99,20.979,35.75]
[1674203225990,35.73,20.995,20.98,10.0]
[1674203226204,45.72,20.997,20.98,10.0]
[1674203227135,10.0,20.995,20.98,10.0]
[1674203227349,54.65,20.994,20.981,35.75]
[1674203227563,18.92,20.994,20.98,10.0]
[1674203227986,18.92,20.994,20.979,35.75]
[1674203228198,14.59375,20.993,20.976,35.76]
[1674203228389,59.24375,20.992,20.976,35.76]
[1674203228598,10.0,20.99,20.976,35.76]
[1674203228918,10.0,20.988,20.976,35.76]
[1674203229270,10.0,20.986,20.976,35.76]
[1674203229469,0.96,20.985,20.955,108.0574]
[1674203229776,40.33375,20.984,20.955,108.0574]
[1674203229968,4.59375,20.983,20.955,108.0574]
[1674203230169,46.71,20.982,20.956,45.79]
[1674203230380,10.0,20.98,20.957,10.0]
[1674203230605,74.67,20.979,20.958,35.79]
[1674203231029,10.0,20.978,20.959,10.0]
[1674203231227,10.0,20.976,20.961,10.0]
[1674203231434,0.96,20.975,20.962,35.78]
[1674203231645,0.96,20.974,20.962,35.78]
[1674203231866,17.0,20.975,20.962,35.78]
[1674203232078,37.68,20.974,20.958,10.0]
[1674203232289,17.0,20.973,20.959,35.79]
[1674203232500,1.92,20.972,20.959,35.79]
[1674203232693,18.92,20.972,20.96,10.0]
[1674203233125,17.0,20.971,20.961,35.78]
[1674203233439,35.76,20.978,20.962,10.0]
[1674203233762,50.34375,20.981,20.964,10.0]
[1674203233960,10.0,20.978,20.965,20.0]
[1674203234166,10.0,20.978,20.963,20.0]
[1674203234596,35.75,20.979,20.965,10.0]
[1674203235010,17.96,20.978,20.965,10.0]
[1674203235232,0.96,20.978,20.965,10.0]
[1674203235438,35.75,20.98,20.965,10.0]
[1674203235649,35.74,20.985,20.966,35.78]
[1674203235851,35.74,20.989,20.967,10.0]
[1674203236063,35.73,20.994,20.968,55.77]
[1674203236386,59.48576951,20.994,20.969,10.96]
[1674203236587,23.75576951,20.994,20.97,35.77]
[1674203236815,23.75576951,20.994,20.971,20.0]
[1674203237025,23.75576951,20.994,20.972,35.77]
[1674203237235,23.75576951,20.994,20.973,30.0]
[1674203237441,23.75576951,20.994,20.974,35.76]
[1674203237664,18.92,20.993,20.975,139.4406]
[1674203237879,54.65,20.993,20.976,35.76]
[1674203238093,23.75576951,20.992,20.977,10.0]
[1674203238309,17.96,20.991,20.977,129.278]
[1674203238497,0.96,20.991,20.977,129.278]
[1674203239564,35.72,20.996,20.978,35.76]
[1674203239769,20.0,21.021,20.978,35.76]
[1674203239770,45.71,21.002,20.979,10.0]
[1674203239988,10.0,21.0,20.981,10.0]
[1674203240174,55.72,20.999,20.982,35.75]
[1674203240383,20.0,20.999,20.982,35.75]
[1674203240589,20.0,20.999,20.983,10.0]
[1674203240810,55.71,21.006,20.984,35.74]
[1674203241025,10.0,21.005,20.985,10.0]
[1674203241231,35.71,21.004,20.985,10.0]
[1674203241564,23.75576951,21.005,20.986,35.74]
[1674203241760,35.71,21.004,20.987,10.0]
[1674203241971,23.75576951,21.005,20.988,35.74]
[1674203242296,23.75576951,21.005,20.989,10.0]
[1674203242487,23.75576951,21.005,20.99,35.73]
[1674203242698,23.75576951,21.005,20.991,10.0]
[1674203244182,23.75576951,21.005,20.992,35.73]
[1674203244396,23.75576951,21.005,20.988,35.74]
[1674203244608,0.96,21.004,20.988,35.74]
[1674203245002,24.71576951,21.003,20.988,35.74]
[1674203245219,17.96,21.002,20.988,154.7171]
[1674203245445,35.7,21.008,20.988,154.7171]
[1674203245767,119.27625835,21.031,20.988,154.7171]
[1674203245768,23.75576951,21.015,20.989,30.0]
[1674203245974,45.69,21.014,20.991,10.0]
[1674203246286,23.75576951,21.013,20.992,55.73]
[1674203246906,10.0,21.012,20.993,10.0]
[1674203247111,45.7,21.012,20.994,55.73]
[1674203247339,23.75576951,21.011,20.995,20.0]
[1674203247548,35.7,21.01,20.995,20.0]
[1674203247871,10.0,21.009,20.995,20.0]
[1674203248095,17.96,21.008,20.994,55.73]
[1674203248286,18.92,21.008,20.994,55.73]
[1674203248597,18.92,21.008,20.994,20.0]
[1674203248804,18.92,21.008,20.993,20.0]
[1674203248997,18.92,21.008,20.994,35.73]
[1674203249208,23.75576951,21.007,20.994,35.73]
[1674203249419,10.0,21.009,20.993,20.0]
[1674203249630,10.0,21.009,20.994,35.73]
[1674203249860,45.7,21.009,20.994,10.0]
[1674203250181,45.7,21.009,20.995,35.73]
[1674203250369,45.7,21.01,20.994,10.0]
[1674203250997,17.96,21.009,20.994,10.0]
[1674203251213,35.7,21.01,20.994,10.0]
[1674203251423,33.75576951,21.012,20.995,35.73]
[1674203251648,33.75576951,21.012,20.996,10.0]
[1674203252200,35.69,21.019,20.996,10.0]
[1674203252390,35.69,21.019,20.997,37.64]
[1674203252597,23.75576951,21.024,20.998,37.0]
[1674203252831,35.68,21.023,21.0,10.0]
[1674203253027,35.68,21.023,21.001,35.72]
[1674203253232,35.68,21.023,21.003,10.0]
[1674203253441,23.75576951,21.027,21.004,35.71]
[1674203253661,35.67,21.026,21.005,113.6226]
[1674203253872,35.67,21.026,21.007,10.0]
[1674203254197,35.67,21.026,21.008,35.7]
[1674203254420,23.75576951,21.025,21.008,35.7]
[1674203254600,10.0,21.024,21.008,35.7]
[1674203255041,10.0,21.024,21.009,10.0]
[1674203255862,59.43576951,21.025,21.009,10.0]
[1674203256502,23.75576951,21.025,21.01,35.7]
[1674203256713,23.75576951,21.025,21.011,10.0]
[1674203257132,17.96,21.024,21.011,10.0]
[1674203257344,0.96,21.024,21.011,10.0]
[1674203257672,0.96,21.025,21.011,10.0]
[1674203258085,0.96,21.024,21.011,10.0]
[1674203258831,59.42576951,21.028,21.011,10.0]
[1674203259134,20.0,21.027,21.012,35.7]
[1674203259539,20.0,21.03,21.012,35.7]
[1674203259756,35.67,21.029,21.013,10.0]
[1674203260083,20.0,21.028,21.013,10.0]
[1674203260282,20.0,21.028,21.014,35.69]
[1674203260493,20.0,21.029,21.014,35.69]
[1674203260702,20.0,21.029,21.015,10.0]
[1674203261557,18.92,21.028,21.015,10.0]
[1674203261748,20.0,21.027,21.015,10.0]
[1674203262159,43.75576951,21.034,21.017,10.0]
[1674203262377,45.66,21.033,21.017,10.0]
[1674203262705,10.0,21.031,21.017,10.0]
[1674203262907,20.0,21.03,21.017,10.0]
[1674203263130,18.92,21.029,21.017,10.0]
[1674203263535,20.0,21.028,21.017,10.0]
[1674203263736,18.92,21.027,21.017,10.0]
[1674203264171,20.0,21.026,21.017,10.0]
[1674203264404,17.0,21.025,21.017,10.0]
[1674203265109,0.96,21.024,21.014,35.69]
[1674203265428,1.92,21.024,21.014,35.69]
[1674203265642,0.96,21.023,21.014,35.69]
[1674203266183,0.96,21.022,21.013,10.0]
[1674203266394,0.96,21.021,21.013,10.0]
[1674203266598,0.96,21.02,21.013,10.0]
[1674203266913,17.0,21.025,21.013,10.0]
[1674203267131,17.0,21.025,21.014,55.69]
[1674203267452,35.66,21.033,21.014,55.69]
[1674203267638,35.66,21.036,21.016,10.0]
[1674203267842,35.66,21.036,21.017,35.69]
[1674203268056,35.66,21.036,21.018,10.0]
[1674203268379,35.66,21.036,21.019,35.69]
[1674203268590,23.75576951,21.037,21.02,10.0]
[1674203268803,20.0,21.036,21.021,35.68]
[1674203269219,20.0,21.041,21.021,35.68]
[1674203269543,35.65,21.04,21.021,35.68]
[1674203269756,20.0,21.039,21.022,10.0]
[1674203269943,20.0,21.039,21.023,35.68]
[1674203270152,1.92,21.038,21.023,35.68]
[1674203270570,20.96,21.038,21.024,10.0]
[1674203270786,17.0,21.037,21.025,35.68]
[1674203271002,20.0,21.036,21.026,10.0]
[1674203272074,17.0,21.035,21.026,10.0]
[1674203274047,0.96,21.034,21.023,35.68]
[1674203274252,20.0,21.036,21.022,10.0]
[1674203274483,20.0,21.04,21.023,35.68]
[1674203274697,0.96,21.035,21.024,10.0]
[1674203275016,0.96,21.035,21.026,10.0]
[1674203275744,0.96,21.034,21.026,10.0]
[1674203279524,0.96,21.034,21.025,35.68]
[1674203279721,0.96,21.034,21.022,10.0]
[1674203279931,0.96,21.034,21.023,35.68]
[1674203280691,0.96,21.034,21.022,10.0]
[1674203281002,0.96,21.034,21.024,10.0]
[1674203281922,0.96,21.034,21.023,35.68]
[1674203282135,0.96,21.034,21.022,10.0]
[1674203282683,17.96,21.034,21.022,10.0]
[1674203282990,0.96,21.033,21.021,35.68]
[1674203284133,0.96,21.032,21.021,35.68]
[1674203284343,0.96,21.031,21.021,35.68]
[1674203284552,0.96,21.03,21.021,35.68]
[1674203284763,0.96,21.029,21.021,35.68]
[1674203285709,0.96,21.028,21.019,35.69]
[1674203285924,0.96,21.027,21.017,35.69]
[1674203286136,0.96,21.026,21.015,151.35]
[1674203286350,0.96,21.026,21.016,20.0]
[1674203286658,0.96,21.025,21.016,20.0]
[1674203286874,0.96,21.024,21.016,20.0]
[1674203287085,0.96,21.023,21.016,20.0]
[1674203287511,0.96,21.023,21.016,30.0]
[1674203288971,0.96,21.023,21.016,20.0]
[1674203289427,0.96,21.023,21.016,30.0]
[1674203290244,35.67,21.03,21.017,10.0]
[1674203290459,35.66,21.034,21.017,10.0]
[1674203290641,35.66,21.034,21.017,45.69]
[1674203292863,35.66,21.034,21.017,10.0]
[1674203293079,54.58,21.032,21.017,10.0]
[1674203293288,10.0,21.031,21.017,10.0]
[1674203293493,18.92,21.03,21.017,10.0]
[1674203293914,35.66,21.032,21.017,10.0]
[1674203294133,35.66,21.036,21.018,73.58623434]
[1674203294355,35.66,21.036,21.019,10.0]
[1674203294568,10.0,21.037,21.02,35.68]
[1674203294784,20.0,21.036,21.02,35.68]
[1674203294991,20.0,21.036,21.02,54.62811717]
[1674203295172,20.0,21.037,21.02,54.62811717]
[1674203295387,20.0,21.038,21.022,10.0]
[1674203295615,20.0,21.039,21.023,36.64]
[1674203295824,20.0,21.04,21.024,10.0]
[1674203296024,10.0,21.042,21.024,10.0]
[1674203296025,45.65,21.042,21.025,35.68]
[1674203296231,35.64,21.046,21.026,20.0]
[1674203296562,45.64,21.047,21.027,45.67]
[1674203296754,10.0,21.045,21.027,45.67]
[1674203297381,10.0,21.045,21.027,35.67]
[1674203297592,17.96,21.044,21.027,35.67]
[1674203297821,10.0,21.043,21.027,35.67]
[1674203298018,17.96,21.042,21.027,35.67]
[1674203298446,33.75576951,21.041,21.022,35.68]
[1674203298775,101.95951951,21.04,21.022,35.68]
[1674203298960,101.95951951,21.04,21.021,110.1169]
[1674203299172,33.75576951,21.039,21.021,110.1169]
[1674203299488,97.36576951,21.038,21.021,110.1169]
[1674203299695,10.0,21.037,21.021,110.1169]
[1674203299906,74.58,21.036,21.021,110.1169]
[1674203300114,98.33576951,21.036,21.018,35.69]
[1674203300336,33.75576951,21.035,21.017,113.033]
[1674203300544,54.58,21.034,21.017,113.033]
[1674203300763,10.0,21.033,21.017,113.033]
[1674203300954,54.58,21.032,21.017,113.033]
[1674203301162,10.0,21.031,21.017,113.033]
[1674203301377,18.92,21.03,21.017,113.033]
[1674203302846,10.0,21.029,21.017,113.033]
[1674203303167,18.92,21.028,21.017,113.033]
[1674203303892,18.92,21.028,21.014,35.69]
[1674203304109,10.0,21.027,21.015,20.0]
[1674203304332,18.92,21.026,21.016,35.69]
[1674203304555,18.92,21.026,21.015,20.0]
[1674203304763,18.92,21.026,21.013,20.0]
[1674203304988,18.92,21.026,21.014,35.69]
[1674203305181,18.92,21.026,21.015,20.0]
[1674203305800,18.92,21.026,21.014,55.69]
[1674203306349,18.92,21.026,21.014,20.0]
[1674203306654,18.92,21.026,21.013,30.0]
[1674203306872,18.92,21.026,21.014,35.69]
[1674203307067,17.0,21.025,21.015,30.0]
[1674203307273,1.92,21.024,21.015,10.0]
[1674203307484,0.96,21.024,21.014,35.69]
[1674203307703,10.96,21.026,21.012,10.0]
[1674203307704,0.96,21.023,21.013,35.7]
[1674203307916,0.96,21.022,21.012,35.7]
[1674203308122,0.96,21.021,21.012,35.7]
[1674203308342,0.96,21.02,21.012,35.7]
[1674203308542,0.96,21.019,21.012,35.7]
[1674203308760,0.96,21.018,21.012,35.7]
[1674203308973,0.96,21.019,21.012,35.7]
[1674203309165,0.96,21.019,21.013,10.0]
[1674203310968,17.0,21.023,21.013,10.0]
[1674203311178,1.92,21.022,21.013,10.0]
[1674203312631,1.92,21.022,21.012,45.7]
[1674203313279,1.92,21.022,21.012,35.7]
[1674203316336,1.92,21.022,21.011,108.9634]
[1674203317504,11.92,21.022,21.011,108.9634]
[1674203317813,17.0,21.021,21.01,115.0036]
[1674203318035,1.92,21.02,21.01,115.0036]
[1674203318973,1.92,21.02,21.007,35.71]
[1674203320109,11.92,21.02,21.007,35.71]
[1674203320448,17.0,21.019,21.007,35.71]
[1674203320631,1.92,21.018,21.007,35.71]
[1674203321924,1.92,21.018,21.006,45.71]
[1674203322102,1.92,21.018,21.006,35.71]
[1674203322519,1.92,21.018,21.005,35.71]
[1674203323050,10.0,21.017,21.003,35.71]
[1674203323270,74.61,21.016,21.001,35.72]
[1674203323684,10.0,21.015,21.001,35.72]
[1674203324012,18.92,21.014,21.0,35.72]
[1674203324222,35.7,21.013,20.991,35.73]
[1674203324422,17.96,21.012,20.991,35.73]
[1674203324631,0.96,21.011,20.992,10.0]
[1674203324841,0.96,21.01,20.993,35.73]
[1674203325169,0.96,21.01,20.994,10.0]
[1674203325384,0.96,21.009,21.0,35.72]
[1674203325570,0.96,21.008,21.001,10.0]
[1674203326005,0.96,21.008,21.0,35.72]
[1674203326230,0.96,21.007,21.0,35.72]
[1674203328132,0.96,21.008,21.0,35.72]
[1674203328956,0.96,21.008,21.001,10.0]
[1674203329168,0.96,21.007,21.001,10.0]
[1674203330216,0.96,21.007,21.0,45.72]
[1674203331394,0.96,21.007,21.001,10.0]
[1674203333287,0.96,21.007,21.0,45.72]
[1674203333801,0.96,21.007,21.001,10.0]
[1674203334743,0.96,21.007,21.0,45.72]
[1674203334943,0.96,21.007,21.001,10.0]
[1674203337465,0.96,21.007,21.0,10.0]
[1674203337682,0.96,21.006,21.0,10.0]
[1674203337896,0.96,21.006,20.999,146.0253]
[1674203338108,0.96,21.005,20.999,110.3053]
[1674203338968,0.96,21.005,21.0,10.0]
[1674203339709,0.96,21.005,20.999,110.3053]
[1674203340013,0.96,21.004,20.997,35.72]
[1674203340229,0.96,21.003,20.993,35.73]
[1674203340414,0.96,21.002,20.994,20.0]
[1674203340630,0.96,21.001,20.995,35.73]
[1674203341572,0.96,21.002,20.995,35.73]
[1674203341777,10.0,21.027,20.995,35.73]
[1674203341778,45.69,21.015,20.995,35.73]
[1674203341988,35.69,21.015,20.996,10.0]
[1674203342213,20.0,21.016,20.997,35.72]
[1674203342421,20.0,21.016,20.998,10.0]
[1674203342640,20.0,21.016,20.999,35.72]
[1674203342845,35.69,21.015,21.0,10.0]
[1674203343172,41.37310846,21.025,21.001,74.64]
[1674203343374,10.0,21.027,21.001,74.64]
[1674203343583,10.0,21.027,21.001,93.58811717]
[1674203343897,10.0,21.027,21.002,10.0]
[1674203344111,10.0,21.027,21.004,10.0]
[1674203344313,74.59,21.026,21.005,168.8721]
[1674203344528,74.59,21.026,21.006,10.0]
[1674203344722,56.63,21.026,21.008,10.0]
[1674203344933,55.67,21.026,21.009,35.7]
[1674203345155,55.67,21.026,21.011,10.0]
[1674203346320,0.96,21.025,21.011,10.0]
[1674203346528,55.67,21.026,21.011,10.0]
[1674203346752,35.67,21.03,21.013,10.0]
[1674203347052,35.67,21.03,21.014,55.69]
[1674203347249,10.0,21.031,21.015,10.0]
[1674203347460,45.66,21.031,21.015,10.0]
[1674203348317,18.92,21.03,21.015,10.0]
[1674203351909,18.92,21.03,21.014,55.69]
[1674203352122,35.67,21.029,21.015,10.0]
[1674203352308,18.92,21.028,21.015,10.0]
[1674203352519,45.66,21.036,21.016,35.69]
[1674203352730,45.66,21.036,21.017,10.0]
[1674203352947,45.66,21.036,21.018,35.69]
[1674203353380,45.66,21.036,21.019,10.0]
[1674203353571,45.66,21.036,21.02,35.68]
[1674203353988,0.96,21.035,21.021,114.7379]
[1674203355061,17.96,21.035,21.021,114.7379]
[1674203355274,0.96,21.034,21.021,114.7379]
[1674203355485,0.96,21.033,21.021,114.7379]
[1674203355674,35.66,21.036,21.021,114.7379]
[1674203355888,10.0,21.04,21.021,114.7379]
[1674203356096,23.75576951,21.038,21.022,35.68]
[1674203356310,10.0,21.036,21.022,35.68]
[1674203356529,10.0,21.036,21.021,114.7379]
[1674203357146,18.92,21.035,21.022,10.0]
[1674203358952,35.65,21.042,21.023,55.68]
[1674203359148,150.0334,21.051,21.024,0.96]
[1674203359345,23.75576951,21.047,21.025,35.68]
[1674203359562,60.23375,21.046,21.026,10.0]
[1674203359791,10.0,21.045,21.027,35.67]
[1674203359992,35.64,21.044,21.027,35.67]
[1674203360210,4.59375,21.043,21.024,109.0041]
[1674203360524,10.0,21.041,21.021,114.7379]
[1674203360752,73.61,21.04,21.021,114.7379]
[1674203360951,0.96,21.039,21.021,114.7379]
[1674203361144,36.61,21.038,21.021,114.7379]
[1674203361347,10.0,21.036,21.021,114.7379]
[1674203361557,54.58,21.035,21.021,114.7379]
[1674203361768,18.92,21.035,21.022,10.0]
[1674203362215,18.92,21.035,21.021,114.7379]
[1674203362616,10.0,21.034,21.021,114.7379]
[1674203362833,10.0,21.036,21.021,114.7379]
[1674203363043,45.65,21.039,21.022,10.0]
[1674203363242,20.0,21.038,21.022,10.0]
[1674203363458,20.0,21.038,21.022,45.68]
[1674203364192,17.0,21.037,21.022,45.68]
[1674203364401,20.0,21.038,21.022,45.68]
[1674203364832,20.0,21.039,21.022,45.68]
[1674203365034,20.0,21.039,21.022,35.68]
[1674203365241,10.0,21.037,21.021,114.7379]
[1674203365447,20.0,21.036,21.021,114.7379]
[1674203365663,46.62,21.035,21.021,114.7379]
[1674203365865,17.96,21.034,21.022,10.0]
[1674203366077,17.96,21.033,21.022,10.0]
[1674203366308,0.96,21.032,21.022,10.0]
[1674203366516,0.96,21.031,21.022,10.0]
[1674203366835,0.96,21.03,21.022,10.0]
[1674203367046,0.96,21.029,21.021,114.7379]